fUST/lending_fUST_20250628
["ID","MTS","AMOUNT","RATE_DAILY","PERIOD"]
[368231148,1751068261789,-460.0,0.00020273,2]
[368231150,1751068261798,-460.0,0.00020273,2]
[368231152,1751068261808,-715.26,0.00020273,2]
[368231154,1751068261818,-1383.95,0.00020273,2]
[368231156,1751068261827,-742.27,0.00020273,2]
[368231158,1751068261837,-536.32,0.00020273,2]
[368231160,1751068261847,-460.0,0.00020273,2]
[368231162,1751068261857,-460.0,0.00020273,2]
[368231164,1751068261866,-1160.83,0.00020273,2]
[368231166,1751068261875,-650.5,0.00020273,2]
[368231168,1751068261884,-460.0,0.00020273,2]
[368231170,1751068261894,-4032.26,0.00020273,2]
[368231172,1751068261903,-947.45,0.00020273,2]
[368231174,1751068261914,-151.0,0.00020273,2]
[368231176,1751068261923,-460.0,0.00020273,2]
[368231178,1751068261932,-460.0,0.00020273,2]
[368231180,1751068261942,-179.795129,0.00020273,2]
[368231182,1751068261951,-460.0,0.00020273,2]
[368231184,1751068261960,-460.0,0.00020273,2]
[368231186,1751068261969,-3901.79,0.00020273,2]
[368231188,1751068261980,-829.11,0.00020273,2]
[368231190,1751068261989,-787.52,0.00020273,2]
[368231192,1751068261998,-151.0,0.00020273,2]
[368231194,1751068262007,-460.0,0.00020273,2]
[368231196,1751068262017,-2096.66,0.00020273,2]
[368231198,1751068262027,-460.0,0.00020273,2]
[368231200,1751068262035,-460.0,0.00020273,2]
[368231202,1751068262045,-4853.84,0.00020273,2]
[368231204,1751068262054,-460.0,0.00020273,2]
[368231206,1751068262063,-762.24,0.00020273,2]
[368231208,1751068262072,-742.59,0.00020273,2]
[368231210,1751068262082,-460.0,0.00020273,2]
[368231212,1751068262091,-922.39,0.00020273,2]
[368231214,1751068262099,-460.0,0.00020273,2]
[368231216,1751068262108,-460.0,0.00020273,2]
[368231218,1751068262118,-151.0,0.00020273,2]
[368231220,1751068262128,-650.45,0.00020273,2]
[368231222,1751068262137,-762.98,0.00020273,2]
[368231224,1751068262147,-460.0,0.00020273,2]
[368231226,1751068262156,-460.0,0.00020273,2]
[368231228,1751068262165,-460.0,0.00020273,2]
[368231230,1751068262175,-460.0,0.00020273,2]
[368231232,1751068262185,-151.0,0.00020273,2]
[368231234,1751068262194,-581.25008691,0.00020273,2]
[368231236,1751068262203,-943.11,0.00020273,2]
[368231238,1751068262212,-2330.57,0.00020273,2]
[368231240,1751068262222,-151.0,0.00020273,2]
[368231242,1751068262232,-460.0,0.00020273,2]
[368231244,1751068262242,-3250.01,0.00020273,2]
[368231246,1751068262251,-151.0,0.00020273,2]
[368231248,1751068262261,-460.0,0.00020273,2]
[368231250,1751068262270,-315.634386,0.00020273,2]
[368231252,1751068262279,-151.0,0.00020273,2]
[368231254,1751068262288,-460.0,0.00020273,2]
[368231256,1751068262299,-560.76,0.00020273,2]
[368231257,1751068262309,-315.634386,0.00020273,2]
[368231258,1751068262318,-499.78424326,0.00020273,2]
[368231259,1751068262327,-318.66381283,0.00020273,2]
[368231260,1751068262337,-460.0,0.00020273,2]
[368231261,1751068262347,-2668.16,0.00020273,2]
[368231262,1751068262355,-460.0,0.00020273,2]
[368231263,1751068262365,-460.0,0.00020273,2]
[368231264,1751068262375,-460.0,0.00020273,2]
[368231265,1751068262384,-1431.83,0.00020273,2]
[368231266,1751068262393,-1785.61,0.00020273,2]
[368231267,1751068262403,-460.0,0.00020273,2]
[368231268,1751068262412,-460.0,0.00020273,2]
[368231269,1751068262421,-1276.19,0.00020273,2]
[368231270,1751068262431,-460.0,0.00020273,2]
[368231272,1751068262441,-460.0,0.00020273,2]
[368231275,1751068262450,-3204.86,0.00020273,2]
[368231277,1751068262460,-460.0,0.00020273,2]
[368231278,1751068262470,-1087.84,0.00020273,2]
[368231280,1751068262479,-460.0,0.00020273,2]
[368231282,1751068262488,-460.0,0.00020273,2]
[368231284,1751068262497,-460.0,0.00020273,2]
[368231286,1751068262507,-460.0,0.00020273,2]
[368231289,1751068262520,-460.0,0.00020273,2]
[368231290,1751068262530,-151.0,0.00020273,2]
[368231292,1751068262539,-382.89941004,0.00020273,2]
[368231294,1751068262549,-875.72,0.00020273,2]
[368231296,1751068262559,-151.0,0.00020273,2]
[368231298,1751068262568,-961.92,0.00020273,2]
[368231300,1751068262577,-402.89393582,0.00020273,2]
[368231302,1751068262587,-756.46,0.00020273,2]
[368231304,1751068262596,-4598.12,0.00020273,2]
[368231306,1751068262606,-1012.39,0.00020273,2]
[368231308,1751068262616,-211.248514,0.00020273,2]
[368231310,1751068262626,-460.0,0.00020273,2]
[368231313,1751068262637,-211.248514,0.00020273,2]
[368231315,1751068262647,-4666.54,0.00020273,2]
[368231316,1751068262657,-460.0,0.00020273,2]
[368231318,1751068262667,-1729.41,0.00020273,2]
[368231320,1751068262676,-460.0,0.00020273,2]
[368231322,1751068262686,-6289.26151161,0.00020383,3]
[368231324,1751068262696,-500.0,0.00020505,2]
[368231326,1751068262705,-500.0,0.00020505,2]
[368231328,1751068262715,-500.0,0.00020505,2]
[368231330,1751068262725,-500.0,0.00020505,2]
[368231332,1751068262735,-500.0,0.00020505,2]
[368231334,1751068262744,-500.0,0.00020505,2]
[368231336,1751068262754,-500.0,0.00020505,2]
[368231338,1751068262763,-500.0,0.00020505,2]
[368231340,1751068262772,-500.0,0.00020505,2]
[368231342,1751068262782,-500.0,0.00020505,2]
[368231344,1751068262791,-500.0,0.00020505,2]
[368231346,1751068262801,-500.0,0.00020505,2]
[368231348,1751068262810,-608.605965,0.00020505,2]
[368231350,1751068262819,-494.75196346,0.00020505,2]
[368231352,1751068262829,-500.0,0.00020505,2]
[368231354,1751068262838,-500.0,0.00020505,2]
[368231356,1751068262847,-500.0,0.00020505,2]
[368231358,1751068262856,-600.0,0.00020505,2]
[368231360,1751068262865,-500.0,0.00020512,2]
[368231362,1751068262875,-160.0,0.00020533,3]
[368231364,1751068262883,-160.0,0.00020533,3]
[368231366,1751068262893,-12562.41216491,0.00020533,3]
[368231368,1751068262902,-160.0,0.00020533,3]
[368231370,1751068262912,-847.04181546,0.00020533,3]
[368231372,1751068262922,-213.75309343,0.00020533,3]
[368231374,1751068262931,-160.0,0.00020533,3]
[368231376,1751068262941,-151.0,0.00020533,2]
[368231378,1751068262950,-203.487797,0.00020533,2]
[368231380,1751068262959,-304.861779,0.00020533,2]
[368231382,1751068262969,-203.487797,0.00020533,2]
[368231384,1751068262979,-978.942829,0.00020533,2]
[368231386,1751068262987,-978.942829,0.00020533,2]
[368231388,1751068262997,-151.0,0.00020533,2]
[368231390,1751068263006,-160.800168,0.00020533,2]
[368231392,1751068263015,-160.800168,0.00020533,2]
[368231394,1751068263025,-197.086534,0.00020533,2]
[368231396,1751068263035,-197.086534,0.00020533,2]
[368231398,1751068263044,-465.5847148,0.00020547,2]
[368231400,1751068263053,-420.65354902,0.00020547,2]
[368231402,1751068263063,-460.0,0.00020547,2]
[368231404,1751068263073,-151.0,0.00020547,2]
[368231406,1751068263082,-151.0,0.00020547,2]
[368231408,1751068263092,-405.00700724,0.00020547,2]
[368231410,1751068263102,-151.0,0.00020547,2]
[368231412,1751068263111,-460.0,0.00020547,2]
[368231414,1751068263121,-214.72640374,0.00020547,2]
[368231416,1751068263131,-460.0,0.00020547,2]
[368231418,1751068263141,-460.0,0.00020547,2]
[368231420,1751068263151,-460.0,0.00020547,2]
[368231422,1751068263160,-935.73,0.00020547,2]
[368231424,1751068263170,-460.0,0.00020547,2]
[368231426,1751068263180,-460.0,0.00020547,2]
[368231428,1751068263189,-460.0,0.00020547,2]
[368231430,1751068263198,-513.13,0.00020547,2]
[368231432,1751068263207,-460.0,0.00020547,2]
[368231435,1751068263217,-460.0,0.00020547,2]
[368231436,1751068263226,-460.0,0.00020547,2]
[368231438,1751068263236,-1231.63,0.00020547,2]
[368231441,1751068263246,-460.0,0.00020547,2]
[368231443,1751068263255,-460.0,0.00020547,2]
[368231445,1751068263264,-564.77,0.00020547,2]
[368231446,1751068263274,-294.09410533,0.00020547,2]
[368231448,1751068263284,-460.0,0.00020547,2]
[368231450,1751068263293,-468.04617772,0.00020547,2]
[368231453,1751068263305,-154.5314504,0.00020547,2]
[368231455,1751068263315,-460.0,0.00020547,2]
[368231457,1751068263324,-151.0,0.00020547,2]
[368231459,1751068263334,-580.69,0.00020547,2]
[368231461,1751068263344,-460.0,0.00020547,2]
[368231462,1751068263355,-460.0,0.00020547,2]
[368231464,1751068263364,-460.0,0.00020547,2]
[368231467,1751068263375,-386.94242314,0.00020547,2]
[368231479,1751068263492,-460.0,0.00020547,2]
[368231481,1751068263502,-460.0,0.00020547,2]
[368231483,1751068263512,-478.61,0.00020547,2]
[368231484,1751068263522,-151.0,0.00020547,2]
[368231486,1751068263532,-151.0,0.00020547,2]
[368231488,1751068263541,-341.21598017,0.00020547,2]
[368231490,1751068263551,-460.0,0.00020547,2]
[368231493,1751068263562,-460.0,0.00020547,2]
[368231494,1751068263572,-460.0,0.00020547,2]
[368231496,1751068263582,-460.0,0.00020547,2]
[368231498,1751068263591,-460.0,0.00020547,2]
[368231500,1751068263601,-460.0,0.00020547,2]
[368231502,1751068263611,-460.0,0.00020547,2]
[368231504,1751068263620,-460.0,0.00020547,2]
[368231506,1751068263629,-1126.41,0.00020547,2]
[368231508,1751068263639,-460.0,0.00020547,2]
[368231510,1751068263649,-460.0,0.00020547,2]
[368231512,1751068263659,-460.0,0.00020547,2]
[368231514,1751068263668,-685.33,0.00020547,2]
[368231516,1751068263678,-2633.95,0.00020547,2]
[368231518,1751068263687,-460.0,0.00020547,2]
[368231520,1751068263696,-460.0,0.00020547,2]
[368231522,1751068263706,-602.73,0.00020547,2]
[368231524,1751068263716,-775.61,0.00020547,2]
[368231526,1751068263725,-460.0,0.00020547,2]
[368231528,1751068263734,-1188.33,0.00020547,2]
[368231530,1751068263744,-460.0,0.00020547,2]
[368231532,1751068263754,-460.0,0.00020547,2]
[368231534,1751068263764,-460.0,0.00020547,2]
[368231536,1751068263773,-460.0,0.00020547,2]
[368231538,1751068263783,-460.0,0.00020547,2]
[368231540,1751068263794,-460.0,0.00020547,2]
[368231542,1751068263804,-460.0,0.00020547,2]
[368231544,1751068263815,-460.0,0.00020547,2]
[368231546,1751068263824,-460.0,0.00020547,2]
[368231547,1751068263834,-555.04,0.00020547,2]
[368231550,1751068263846,-6720.85,0.00020547,2]
[368231552,1751068263856,-460.0,0.00020547,2]
[368231554,1751068263866,-460.0,0.00020547,2]
[368231556,1751068263877,-460.0,0.00020547,2]
[368231557,1751068263886,-460.0,0.00020547,2]
[368231560,1751068263896,-460.0,0.00020547,2]
[368231561,1751068263906,-6059.72,0.00020547,2]
[368231563,1751068263916,-1858.25,0.00020547,2]
[368231566,1751068263926,-460.0,0.00020547,2]
[368231567,1751068263936,-247.06,0.00020547,2]
[368231570,1751068263946,-460.0,0.00020547,2]
[368231572,1751068263956,-627.71,0.00020547,2]
[368231573,1751068263966,-2632.06,0.00020547,2]
[368231576,1751068263976,-460.0,0.00020547,2]
[368231577,1751068263986,-460.0,0.00020547,2]
[368231579,1751068263995,-460.0,0.00020547,2]
[368231581,1751068264005,-460.0,0.00020547,2]
[368231583,1751068264014,-500.0,0.00020547,14]
[368231585,1751068264024,-460.0,0.00020547,2]
[368231587,1751068264034,-1731.49,0.00020547,2]
[368231589,1751068264044,-460.0,0.00020547,2]
[368231591,1751068264053,-460.0,0.00020547,2]
[368231593,1751068264063,-4205.16,0.00020547,2]
[368231595,1751068264072,-543.96932528,0.00020547,2]
[368231597,1751068264082,-460.0,0.00020547,2]
[368231599,1751068264091,-842.34,0.00020547,2]
[368231601,1751068264101,-2188.05,0.00020547,2]
[368231603,1751068264110,-858.75,0.00020547,2]
[368231605,1751068264119,-460.0,0.00020547,2]
[368231607,1751068264129,-765.63,0.00020547,2]
[368231609,1751068264139,-1775.32,0.00020547,2]
[368231611,1751068264149,-336.22182746,0.00020547,2]
[368231613,1751068264159,-583.9,0.00020547,2]
[368231615,1751068264169,-218.09063573,0.00020547,2]
[368231617,1751068264179,-715.26,0.00020547,2]
[368231619,1751068264189,-1383.95,0.00020547,2]
[368231621,1751068264198,-742.27,0.00020547,2]
[368231623,1751068264208,-536.32,0.00020547,2]
[368231626,1751068264218,-460.0,0.00020547,2]
[368231627,1751068264228,-460.0,0.00020547,2]
[368231630,1751068264238,-1160.83,0.00020547,2]
[368231631,1751068264247,-650.5,0.00020547,2]
[368231634,1751068264257,-947.45,0.00020547,2]
[368231635,1751068264267,-4032.26,0.00020547,2]
[368231637,1751068264276,-460.0,0.00020547,2]
[368231640,1751068264286,-205.70532358,0.00020547,2]
[368231641,1751068264295,-460.0,0.00020547,2]
[368231643,1751068264305,-460.0,0.00020547,2]
[368231646,1751068264315,-3901.79,0.00020547,2]
[368231647,1751068264324,-829.11,0.00020547,2]
[368231650,1751068264334,-787.52,0.00020547,2]
[368231652,1751068264343,-2096.66,0.00020547,2]
[368231653,1751068264353,-460.0,0.00020547,2]
[368231656,1751068264363,-460.0,0.00020547,2]
[368231658,1751068264372,-460.0,0.00020547,2]
[368231659,1751068264381,-4853.84,0.00020547,2]
[368231662,1751068264392,-460.0,0.00020547,2]
[368231664,1751068264403,-762.24,0.00020547,2]
[368231665,1751068264413,-742.59,0.00020547,2]
[368231667,1751068264422,-460.0,0.00020547,2]
[368231669,1751068264432,-460.0,0.00020547,2]
[368231671,1751068264441,-460.0,0.00020547,2]
[368231674,1751068264454,-922.39,0.00020547,2]
[368231676,1751068264463,-650.45,0.00020547,2]
[368231678,1751068264473,-762.98,0.00020547,2]
[368231680,1751068264483,-460.0,0.00020547,2]
[368231682,1751068264493,-460.0,0.00020547,2]
[368231684,1751068264502,-460.0,0.00020547,2]
[368231686,1751068264511,-151.0,0.00020547,2]
[368231687,1751068264521,-943.11,0.00020547,2]
[368231689,1751068264530,-2330.57,0.00020547,2]
[368231691,1751068264539,-151.0,0.00020547,2]
[368231693,1751068264549,-460.0,0.00020547,2]
[368231696,1751068264559,-3250.01,0.00020547,2]
[368231698,1751068264569,-151.0,0.00020547,2]
[368231700,1751068264579,-151.0,0.00020547,2]
[368231702,1751068264588,-270.14,0.00020547,2]
[368231704,1751068264598,-560.76,0.00020547,2]
[368231706,1751068264607,-2668.16,0.00020547,2]
[368231708,1751068264617,-460.0,0.00020547,2]
[368231710,1751068264626,-460.0,0.00020547,2]
[368231712,1751068264636,-460.0,0.00020547,2]
[368231714,1751068264646,-1431.83,0.00020547,2]
[368231716,1751068264656,-1785.61,0.00020547,2]
[368231718,1751068264665,-460.0,0.00020547,2]
[368231719,1751068264675,-1276.19,0.00020547,2]
[368231720,1751068264686,-460.0,0.00020547,2]
[368231721,1751068264696,-460.0,0.00020547,2]
[368231722,1751068264705,-3204.86,0.00020547,2]
[368231723,1751068264715,-460.0,0.00020547,2]
[368231724,1751068264725,-1087.84,0.00020547,2]
[368231725,1751068264734,-460.0,0.00020547,2]
[368231726,1751068264743,-460.0,0.00020547,2]
[368231727,1751068264753,-240.64718336,0.00020547,2]
[368231728,1751068264763,-460.0,0.00020547,2]
[368231729,1751068264773,-460.0,0.00020547,2]
[368231730,1751068264782,-875.72,0.00020547,2]
[368231731,1751068264791,-151.0,0.00020547,2]
[368231732,1751068264801,-961.92,0.00020547,2]
[368231733,1751068264812,-756.46,0.00020547,2]
[368231735,1751068264822,-4598.12,0.00020547,2]
[368231736,1751068264831,-1012.39,0.00020547,2]
[368231738,1751068264841,-211.248514,0.00020547,2]
[368231740,1751068264851,-460.0,0.00020547,2]
[368231742,1751068264860,-4666.54,0.00020547,2]
[368231744,1751068264870,-211.248514,0.00020547,2]
[368231746,1751068264879,-460.0,0.00020547,2]
[368231748,1751068264889,-1729.41,0.00020547,2]
[368231750,1751068264898,-566.5063155,0.00020547,2]
[368231752,1751068264908,-1500.0,0.00020568,2]
[368231755,1751068264917,-3687.37,0.000206,2]
[368231756,1751068264926,-6289.26151161,0.00020624,3]
[368231758,1751068264935,-5933.15220573,0.00020669,2]
[368231761,1751068264945,-151.0,0.00020769,2]
[368231763,1751068264955,-151.0,0.00020769,2]
[368231765,1751068264964,-157.812321,0.00020769,2]
[368231767,1751068264974,-315.634386,0.00020769,2]
[368231769,1751068264983,-315.634386,0.00020769,2]
[368231771,1751068264992,-207.4,0.00020769,2]
[368231773,1751068265001,-500.0,0.00020769,2]
[368231775,1751068265011,-500.0,0.00020769,2]
[368231777,1751068265020,-500.0,0.00020769,2]
[368231779,1751068265029,-500.0,0.00020769,2]
[368231781,1751068265039,-500.0,0.00020769,2]
[368231783,1751068265048,-500.0,0.00020769,2]
[368231785,1751068265057,-500.0,0.00020769,2]
[368231787,1751068265065,-666.0,0.00020769,2]
[368231789,1751068265075,-500.0,0.00020769,2]
[368231791,1751068265084,-5000.0,0.00020769,2]
[368231793,1751068265093,-500.0,0.00020769,2]
[368231795,1751068265102,-500.0,0.00020769,2]
[368231796,1751068265111,-500.0,0.00020769,2]
[368231798,1751068265120,-500.0,0.00020769,2]
[368231800,1751068265130,-500.0,0.00020769,2]
[368231802,1751068265139,-500.0,0.00020769,2]
[368231804,1751068265148,-500.0,0.00020769,2]
[368231806,1751068265158,-500.0,0.00020769,2]
[368231808,1751068265167,-500.0,0.00020769,2]
[368231810,1751068265176,-500.0,0.00020769,2]
[368231812,1751068265186,-500.0,0.00020769,2]
[368231814,1751068265195,-500.0,0.00020769,2]
[368231816,1751068265205,-16600.45794012,0.00020769,2]
[368231819,1751068265215,-177.4788171,0.00020795,2]
[368231820,1751068265224,-177.4788171,0.00020795,2]
[368231822,1751068265234,-151.0,0.00020808,2]
[368231824,1751068265243,-151.0,0.00020808,2]
[368231826,1751068265252,-151.0,0.00020808,2]
[368231829,1751068265262,-2000.0,0.00020816,2]
[368231831,1751068265272,-460.0,0.00020821,2]
[368231832,1751068265281,-151.0,0.00020821,2]
[368231834,1751068265290,-460.0,0.00020821,2]
[368231837,1751068265302,-460.0,0.00020821,2]
[368231838,1751068265311,-151.0,0.00020821,2]
[368231840,1751068265320,-460.0,0.00020821,2]
[368231842,1751068265330,-460.0,0.00020821,2]
[368231844,1751068265339,-151.0,0.00020821,2]
[368231846,1751068265349,-151.0,0.00020821,2]
[368231848,1751068265359,-935.73,0.00020821,2]
[368231850,1751068265367,-460.0,0.00020821,2]
[368231852,1751068265378,-460.0,0.00020821,2]
[368231854,1751068265387,-460.0,0.00020821,2]
[368231856,1751068265396,-513.13,0.00020821,2]
[368231858,1751068265405,-460.0,0.00020821,2]
[368231860,1751068265415,-460.0,0.00020821,2]
[368231872,1751068265518,-151.0,0.00020821,2]
[368231874,1751068265529,-460.0,0.00020821,2]
[368231876,1751068265538,-151.0,0.00020821,2]
[368231878,1751068265547,-1231.63,0.00020821,2]
[368231880,1751068265556,-460.0,0.00020821,2]
[368231882,1751068265566,-495.86,0.00020821,2]
[368231884,1751068265575,-564.77,0.00020821,2]
[368231886,1751068265584,-151.0,0.00020821,2]
[368231888,1751068265593,-151.0,0.00020821,2]
[368231890,1751068265603,-151.0,0.00020821,2]
[368231892,1751068265613,-460.0,0.00020821,2]
[368231894,1751068265622,-155.218412,0.00020821,2]
[368231896,1751068265630,-278.379418,0.00020821,2]
[368231898,1751068265639,-580.69,0.00020821,2]
[368231900,1751068265649,-155.218412,0.00020821,2]
[368231902,1751068265658,-278.379418,0.00020821,2]
[368231904,1751068265667,-460.0,0.00020821,2]
[368231906,1751068265677,-460.0,0.00020821,2]
[368231908,1751068265686,-460.0,0.00020821,2]
[368231910,1751068265695,-415.9782029,0.00020821,2]
[368231911,1751068265705,-460.0,0.00020821,2]
[368231913,1751068265715,-478.61,0.00020821,2]
[368231915,1751068265724,-460.0,0.00020821,2]
[368231917,1751068265734,-460.0,0.00020821,2]
[368231919,1751068265744,-460.0,0.00020821,2]
[368231921,1751068265753,-460.0,0.00020821,2]
[368231923,1751068265763,-460.0,0.00020821,2]
[368231925,1751068265773,-460.0,0.00020821,2]
[368231928,1751068265783,-460.0,0.00020821,2]
[368231930,1751068265792,-1126.41,0.00020821,2]
[368231932,1751068265801,-460.0,0.00020821,2]
[368231934,1751068265812,-203.487797,0.00020821,2]
[368231936,1751068265822,-304.861779,0.00020821,2]
[368231938,1751068265832,-460.0,0.00020821,2]
[368231940,1751068265842,-203.487797,0.00020821,2]
[368231942,1751068265851,-460.0,0.00020821,2]
[368231944,1751068265861,-685.33,0.00020821,2]
[368231946,1751068265870,-2633.95,0.00020821,2]
[368231948,1751068265880,-460.0,0.00020821,2]
[368231950,1751068265889,-460.0,0.00020821,2]
[368231952,1751068265898,-602.73,0.00020821,2]
[368231954,1751068265908,-775.61,0.00020821,2]
[368231956,1751068265918,-460.0,0.00020821,2]
[368231958,1751068265927,-1188.33,0.00020821,2]
[368231960,1751068265937,-327.25236905,0.00020821,2]
[368231962,1751068265946,-978.942829,0.00020821,2]
[368231964,1751068265955,-978.942829,0.00020821,2]
[368231966,1751068265964,-460.0,0.00020821,2]
[368231968,1751068265974,-460.0,0.00020821,2]
[368231970,1751068265983,-151.0,0.00020821,2]
[368231972,1751068265992,-160.800168,0.00020821,2]
[368231974,1751068266002,-460.0,0.00020821,2]
[368231976,1751068266012,-460.0,0.00020821,2]
[368231977,1751068266022,-160.800168,0.00020821,2]
[368231979,1751068266032,-460.0,0.00020821,2]
[368231982,1751068266043,-460.0,0.00020821,2]
[368231984,1751068266053,-460.0,0.00020821,2]
[368231985,1751068266063,-555.04,0.00020821,2]
[368231987,1751068266072,-6720.85,0.00020821,2]
[368231989,1751068266081,-460.0,0.00020821,2]
[368231991,1751068266090,-460.0,0.00020821,2]
[368231993,1751068266100,-460.0,0.00020821,2]
[368231995,1751068266109,-6059.72,0.00020821,2]
[368231997,1751068266119,-197.086534,0.00020821,2]
[368232000,1751068266129,-1858.25,0.00020821,2]
[368232002,1751068266139,-460.0,0.00020821,2]
[368232004,1751068266150,-460.0,0.00020821,2]
[368232006,1751068266160,-197.086534,0.00020821,2]
[368232007,1751068266170,-627.71,0.00020821,2]
[368232009,1751068266179,-2632.06,0.00020821,2]
[368232011,1751068266188,-460.0,0.00020821,2]
[368232013,1751068266197,-460.0,0.00020821,2]
[368232015,1751068266207,-460.0,0.00020821,2]
[368232017,1751068266216,-1731.49,0.00020821,2]
[368232020,1751068266226,-460.0,0.00020821,2]
[368232022,1751068266235,-4205.16,0.00020821,2]
[368232024,1751068266245,-460.0,0.00020821,2]
[368232026,1751068266255,-842.34,0.00020821,2]
[368232027,1751068266264,-2188.05,0.00020821,2]
[368232029,1751068266274,-858.75,0.00020821,2]
[368232031,1751068266283,-765.63,0.00020821,2]
[368232033,1751068266292,-666.482233,0.00020821,2]
[368232036,1751068266304,-1775.32,0.00020821,2]
[368232037,1751068266315,-666.482233,0.00020821,2]
[368232040,1751068266326,-715.26,0.00020821,2]
[368232042,1751068266336,-1383.95,0.00020821,2]
[368232043,1751068266345,-742.27,0.00020821,2]
[368232046,1751068266355,-536.32,0.00020821,2]
[368232048,1751068266365,-460.0,0.00020821,2]
[368232050,1751068266375,-460.0,0.00020821,2]
[368232052,1751068266385,-1160.83,0.00020821,2]
[368232054,1751068266394,-650.5,0.00020821,2]
[368232056,1751068266404,-947.45,0.00020821,2]
[368232058,1751068266414,-4032.26,0.00020821,2]
[368232060,1751068266424,-460.0,0.00020821,2]
[368232062,1751068266434,-460.0,0.00020821,2]
[368232064,1751068266443,-548.06,0.00020821,2]
[368232066,1751068266452,-3901.79,0.00020821,2]
[368232068,1751068266462,-829.11,0.00020821,2]
[368232070,1751068266473,-787.52,0.00020821,2]
[368232072,1751068266482,-2096.66,0.00020821,2]
[368232074,1751068266492,-460.0,0.00020821,2]
[368232076,1751068266502,-460.0,0.00020821,2]
[368232078,1751068266511,-460.0,0.00020821,2]
[368232080,1751068266520,-4853.84,0.00020821,2]
[368232082,1751068266529,-460.0,0.00020821,2]
[368232084,1751068266538,-762.24,0.00020821,2]
[368232086,1751068266547,-742.59,0.00020821,2]
[368232088,1751068266556,-460.0,0.00020821,2]
[368232090,1751068266565,-460.0,0.00020821,2]
[368232092,1751068266574,-460.0,0.00020821,2]
[368232094,1751068266583,-922.39,0.00020821,2]
[368232096,1751068266593,-650.45,0.00020821,2]
[368232098,1751068266603,-762.98,0.00020821,2]
[368232100,1751068266612,-460.0,0.00020821,2]
[368232102,1751068266622,-460.0,0.00020821,2]
[368232104,1751068266631,-460.0,0.00020821,2]
[368232106,1751068266641,-943.11,0.00020821,2]
[368232107,1751068266650,-2330.57,0.00020821,2]
[368232109,1751068266659,-3250.01,0.00020821,2]
[368232112,1751068266669,-460.0,0.00020821,2]
[368232114,1751068266679,-560.76,0.00020821,2]
[368232115,1751068266689,-2668.16,0.00020821,2]
[368232117,1751068266698,-460.0,0.00020821,2]
[368232119,1751068266708,-460.0,0.00020821,2]
[368232121,1751068266717,-1431.83,0.00020821,2]
[368232123,1751068266726,-1785.61,0.00020821,2]
[368232126,1751068266736,-460.0,0.00020821,2]
[368232128,1751068266746,-1276.19,0.00020821,2]
[368232130,1751068266755,-460.0,0.00020821,2]
[368232132,1751068266764,-460.0,0.00020821,2]
[368232134,1751068266773,-3204.86,0.00020821,2]
[368232136,1751068266785,-460.0,0.00020821,2]